bitfinex/quotes_ETHUSD_20240822
["timestamp","ask_amount","ask_price","bid_price","bid_amount"]
[1724353240341,9.26234089,2610.3,2609.8,3.83163]
[1724353240553,1.60028089,2610.2,2609.8,3.83163]
[1724353241168,1.60028089,2610.2,2609.9,3.83156]
[1724353241378,1.60028089,2610.3,2610.0,2.3525]
[1724353241729,1.60028089,2610.6,2610.2,3.831]
[1724353241926,1.60028089,2610.6,2610.3,3.83096]
[1724353242242,1.60028089,2610.7,2610.4,2.3525]
[1724353242463,1.60028089,2610.9,2610.5,4.449026]
[1724353242647,1.60028089,2611.0,2610.8,2.3525]
[1724353243230,1.60028089,2611.0,2610.6,6.18298]
[1724353243733,1.60028089,2611.0,2610.6,10.01342]
[1724353244179,1.60028089,2611.0,2610.6,10.01339]
[1724353244344,1.60028089,2611.0,2610.6,6.18294]
[1724353245045,1.60028089,2611.0,2610.6,10.01338]
[1724353245247,1.60028089,2611.0,2610.6,11.37581362]
[1724353245830,1.60028089,2611.1,2610.6,11.37581362]
[1724353246064,1.60028089,2611.1,2610.6,10.01338]
[1724353246260,1.60028089,2611.1,2610.8,3.83023]
[1724353247439,1.60028089,2611.1,2610.6,6.18289]
[1724353247831,1.60028089,2611.1,2610.7,3.83035]
[1724353248556,1.60028089,2611.0,2610.7,3.83035]
[1724353249379,1.60028089,2611.0,2610.7,4.69014873]
[1724353250210,1.60028089,2611.2,2610.9,3.83009]
[1724353250556,1.60028089,2611.2,2610.8,2.3586]
[1724353251302,1.60028089,2611.2,2610.8,6.18881]
[1724353251782,1.60028089,2611.1,2610.8,3.83021]
[1724353251986,5.42993089,2611.2,2610.6,2.3586]
[1724353252160,5.42993089,2611.2,2610.7,3.83038]
[1724353252161,1.60028089,2611.1,2610.7,3.83038]
[1724353252356,3.83011,2610.9,2610.4,7.36]
[1724353252562,1.60028089,2610.9,2610.4,11.19082]
[1724353252869,1.60028089,2610.9,2610.5,3.83066]
[1724353254706,1.60028089,2610.9,2610.5,7.66126]
[1724353255375,1.60028089,2610.9,2610.7,6.22321]
[1724353255576,1.60028089,2610.9,2610.7,6.2232]
[1724353255787,1.60028089,2611.1,2610.9,3.83009]
[1724353257817,1.60028089,2611.1,2610.8,7.66048]
[1724353257987,1.60028089,2611.1,2610.8,4.835578]
[1724353258317,1.60028089,2611.1,2610.5,2.037986]
[1724353258539,1.60028089,2611.1,2610.5,3.83065]
[1724353258540,1.60028089,2611.0,2610.5,3.83065]
[1724353258875,1.60028089,2610.9,2610.5,3.83065]
[1724353260230,1.60028089,2610.8,2610.5,3.83065]
[1724353260437,1.60028089,2610.9,2610.6,3.83051]
[1724353260578,1.60028089,2611.0,2610.8,2.2759]
[1724353260783,1.60028089,2611.1,2610.8,6.10604]
[1724353261523,1.60028089,2611.1,2610.9,3.83009]
[1724353261829,1.60028089,2611.2,2611.0,3.82992]
[1724353261983,1.60028089,2611.2,2611.1,3.8298]
[1724353262180,1.60028089,2611.4,2611.2,3.82965]
[1724353262995,1.60028089,2611.4,2610.8,2.2759]
[1724353262996,1.60028089,2611.4,2611.1,3.8298]
[1724353263227,4.27145248,2611.3,2610.7,3.83038]
[1724353263380,1.59968161,2611.1,2610.7,3.83038]
[1724353263605,1.59968161,2611.2,2610.8,2.426]
[1724353264438,7.70127161,2611.1,2610.6,6.83045]
[1724353264920,3.87138161,2611.1,2610.7,3.83035]
[1724353265123,1.59968161,2611.1,2610.7,3.83029]
[1724353265438,1.59968161,2611.2,2610.7,10.0866]
[1724353265613,1.59968161,2611.2,2610.9,3.82997]
[1724353266010,2.2717,2611.3,2610.9,3.82997]
[1724353266011,1.59968161,2611.3,2610.9,3.82997]
[1724353266752,1.59968161,2611.3,2611.0,3.8299]
[1724353268112,1.59968161,2611.4,2611.2,3.82965]
[1724353268617,1.59968161,2611.5,2611.2,3.82965]
[1724353268822,1.59968161,2611.6,2611.2,1.008544]
[1724353269017,1.59968161,2611.6,2611.1,2.426]
[1724353269018,1.59968161,2611.8,2611.4,3.82936]
[1724353269233,1.59968161,2611.8,2611.7,7.65784]
[1724353269584,1.59968161,2612.1,2611.9,7.65708]
[1724353269758,1.59968161,2612.2,2611.9,7.65708]
[1724353269925,1.59968161,2612.2,2611.9,3.82853]
[1724353270123,1.59968161,2612.3,2611.9,3.82853]
[1724353271216,5.42773161,2612.3,2611.7,3.82883]
[1724353271465,5.42799161,2612.2,2611.7,3.82883]
[1724353272066,3.82831,2612.2,2611.7,3.82883]
[1724353272276,7.82832161,2612.1,2611.5,13.61513]
[1724353272419,7.82832161,2612.1,2611.3,3.0]
[1724353272420,3.8287,2611.9,2611.3,6.82936]
[1724353272621,3.8287,2611.9,2611.4,3.82923]
[1724353272829,6.22864,2612.1,2611.5,3.0]
[1724353273116,3.82863,2611.9,2611.3,6.82942]
[1724353273962,3.82878,2611.8,2611.3,6.82942]
[1724353274276,9.25703161,2611.9,2611.3,6.82942]
[1724353274626,7.65735,2611.9,2611.3,6.82942]
[1724353274925,3.82882,2611.8,2611.3,6.82942]
[1724353275156,6.19772,2611.7,2611.1,3.82971]
[1724353275338,3.82916,2611.6,2611.1,3.82971]
[1724353275537,7.79740161,2611.7,2611.2,3.82952]
[1724353275741,2.3688,2611.7,2611.2,3.82952]
[1724353275937,3.8288,2611.8,2611.3,3.82947]
[1724353276511,4.01328161,2611.9,2611.3,3.82947]
[1724353276680,4.01328161,2611.9,2611.5,3.8292]
[1724353277870,7.84192161,2611.9,2611.3,3.82936]
[1724353278408,4.01328161,2611.9,2611.5,3.82908]
[1724353278608,1.59968161,2611.9,2611.5,3.82908]
[1724353279028,1.59968161,2611.9,2611.6,3.82906]
[1724353279187,1.59968161,2611.9,2611.4,3.82923]
[1724353279517,5.42818161,2612.0,2611.4,3.82923]
[1724353280425,5.42818161,2612.0,2611.5,3.82912]
[1724353281032,5.42818161,2612.0,2611.5,7.65824]
[1724353281321,1.59968161,2612.0,2611.7,3.82883]
[1724353282680,1.59968161,2612.0,2611.6,2.3489]
[1724353282886,1.59968161,2612.0,2611.6,6.17791]
[1724353283116,1.59968161,2612.0,2611.7,3.8289]
[1724353283298,1.59968161,2612.0,2611.8,3.82867]
[1724353284181,1.59968161,2612.0,2611.7,3.82881]
[1724353284537,1.59968161,2612.0,2611.8,3.82877]
[1724353285483,1.59968161,2612.0,2611.7,3.82891]
[1724353286830,3.82822,2612.2,2611.7,3.82891]
[1724353287705,3.82822,2612.2,2611.7,4.9296568]
[1724353288501,3.82822,2612.2,2611.8,3.82877]
[1724353288718,3.82822,2612.2,2611.7,1.1007468]
[1724353288886,7.65648,2612.2,2611.7,4.9296468]
[1724353289187,3.82822,2612.2,2611.7,4.9296468]
[1724353289500,3.82886,2611.8,2611.3,7.36]
[1724353289706,3.82886,2611.8,2611.4,3.82933]
[1724353289870,3.82864,2611.9,2611.4,3.82929]
[1724353290955,3.82856,2612.0,2611.5,3.82915]
[1724353291152,3.82856,2612.0,2611.5,5.330993]
[1724353291982,3.82808,2612.3,2611.8,3.82876]
[1724353292164,6.18711,2612.4,2611.8,3.8287]
[1724353292369,3.82808,2612.3,2611.9,0.38287]
[1724353292855,10.01508,2612.4,2611.8,3.8287]
[1724353293055,3.82807,2612.3,2611.8,3.8287]
[1724353293288,3.8282,2612.2,2611.8,3.8287]
[1724353293501,5.42574841,2612.2,2611.8,3.8287]
[1724353294156,5.42574841,2612.2,2611.7,3.82891]
[1724353294357,1.59754841,2612.2,2611.6,13.47264]
[1724353294691,3.8284,2612.1,2611.6,13.47264]
[1724353295037,3.8284,2612.1,2611.6,13.96504811]
[1724353295206,3.82855,2612.0,2611.6,7.36]
[1724353295698,6.18765,2612.0,2611.6,7.36]
[1724353296306,10.01626,2612.0,2611.6,7.36]
[1724353296474,3.82871,2611.9,2611.6,7.36]
[1724353297761,3.82871,2611.9,2611.4,7.65856]
[1724353298076,3.82871,2611.9,2611.4,7.104496]
[1724353298263,3.82871,2611.9,2611.4,10.933776]
[1724353299326,7.78519841,2612.0,2611.4,7.104486]
[1724353299623,1.59754841,2612.0,2611.6,3.82905]
[1724353299974,5.42588841,2612.1,2611.6,3.82905]
[1724353300214,5.42588841,2612.1,2611.6,3.82899]
[1724353300614,5.42588841,2612.1,2611.6,7.65798]
[1724353300835,5.42588841,2612.1,2611.6,4.9223156]
[1724353301195,1.59754841,2612.1,2611.9,2.3066]
[1724353301376,1.59754841,2612.2,2611.9,2.3066]
[1724353302520,1.59754841,2612.2,2611.9,6.13516]
[1724353302906,1.59754841,2612.2,2611.9,2.3066]
[1724353303855,1.59754841,2612.1,2611.9,2.3066]
[1724353304024,1.59754841,2612.2,2611.9,2.920127]
[1724353304654,1.59754841,2612.2,2611.9,6.748747]
[1724353304952,1.59754841,2612.3,2611.9,6.748747]
[1724353306054,1.59754841,2612.2,2611.9,6.748747]
[1724353306199,1.59754841,2612.2,2612.0,1.0577417]
[1724353306539,1.59754841,2612.2,2611.9,2.920127]
[1724353306540,1.59754841,2612.2,2611.9,2.3066]
[1724353307794,1.59754841,2612.1,2611.9,2.3066]
[1724353308349,1.59754841,2612.1,2611.7,6.20451]
[1724353308534,5.42588841,2612.1,2611.7,2.3756]
[1724353308697,5.42588841,2612.1,2611.7,6.20451]
[1724353309443,5.42588841,2612.1,2611.7,8.05319156]
[1724353309849,3.82852,2612.0,2611.7,1.84868156]
[1724353310164,5.42606841,2612.0,2611.6,1.0933456]
[1724353310448,5.42606841,2612.0,2611.6,4.0933456]
[1724353310808,3.82852,2612.0,2611.6,4.0933456]
[1724353311348,1.59754841,2611.9,2611.6,3.0]
[1724353311510,1.59754841,2611.9,2611.3,3.8294]
[1724353311700,5.42643841,2611.8,2611.3,3.8294]
[1724353312410,1.59754841,2611.7,2611.3,3.8294]
[1724353313198,4.00614841,2611.7,2611.2,13.56524]
[1724353313389,4.00614841,2611.7,2611.2,17.39474]
[1724353313848,7.83507841,2611.7,2611.2,13.56516]
[1724353314000,4.00614841,2611.7,2611.2,17.39473]
[1724353314198,1.59754841,2611.7,2611.4,3.82935]
[1724353314420,1.59754841,2611.7,2611.4,3.82928]
[1724353315231,2.00011782,2611.8,2611.6,3.82899]
[1724353315232,1.59754841,2611.8,2611.6,3.82899]
[1724353316493,1.59754841,2611.8,2611.5,6.20477]
[1724353316726,1.59754841,2611.8,2611.5,6.2047]
[1724353316941,1.59754841,2611.7,2611.3,3.82941]
[1724353317109,1.59754841,2611.7,2611.3,5.3959383]
[1724353317950,1.59754841,2611.6,2611.2,11.18965]
[1724353318746,1.59754841,2611.6,2611.3,3.8295]
[1724353319318,1.59754841,2611.6,2611.3,7.65893]
[1724353320130,1.59754841,2611.6,2611.3,3.82943]
[1724353320729,1.59754841,2611.5,2611.3,3.82943]
[1724353321047,1.59754841,2611.5,2610.8,3.83014]
[1724353321048,3.82961,2611.3,2610.8,3.83014]
[1724353321199,1.60052203,2611.2,2610.8,3.83014]
[1724353321400,1.60052203,2611.2,2611.0,3.8299]
[1724353321606,1.60052203,2611.3,2611.1,3.8298]
[1724353321835,1.60052203,2611.3,2611.1,3.82972]
[1724353322761,1.60052203,2611.3,2611.2,3.82965]
[1724353322906,1.60052203,2611.4,2611.2,3.82965]
[1724353323352,1.60052203,2611.4,2611.1,4.834302]
[1724353323663,1.60052203,2611.5,2611.4,3.82936]
[1724353324013,1.60013737,2611.6,2611.5,3.82921]
[1724353324322,1.60013737,2611.7,2611.5,3.82912]
[1724353325152,2.00023768,2611.9,2611.5,3.82912]
[1724353325153,1.60013737,2611.8,2611.7,6.24212]
[1724353325553,1.60013737,2611.9,2611.7,6.24212]
[1724353326060,1.60013737,2611.9,2611.6,3.82907]
[1724353326061,1.60013737,2611.9,2611.6,7.65814]
[1724353326666,1.60013737,2611.8,2611.6,3.82907]
[1724353327005,1.60013737,2611.9,2611.6,3.82907]
[1724353327206,1.60013737,2611.9,2611.7,0.619957]
[1724353327447,1.60013737,2611.9,2611.6,3.82907]
[1724353328527,1.60013737,2611.9,2611.6,3.82899]
[1724353328722,1.60013737,2612.1,2611.9,6.08453]
[1724353329085,1.60013737,2612.1,2611.2,11.6730502]
[1724353329086,1.60013737,2612.4,2612.3,6.24744]
[1724353329357,2.4014343,2612.9,2612.3,6.24744]
[1724353329358,1.60013737,2612.7,2612.6,3.8276]
[1724353329566,1.60013737,2612.8,2612.6,3.8276]
[1724353330305,1.60013737,2612.9,2612.6,3.8276]
[1724353330528,2.00119525,2613.0,2612.5,3.82773]
[1724353330529,1.60013737,2612.8,2612.5,3.82773]
[1724353330825,1.60013737,2612.9,2612.5,3.82773]
[1724353331028,1.60013737,2612.8,2612.3,6.24734]
[1724353331243,5.42753737,2612.8,2612.3,6.24734]
[1724353331445,3.82746,2612.7,2612.1,11.18831]
[1724353331644,3.82746,2612.7,2611.7,6.21509]
[1724353331645,3.82813,2612.3,2611.7,6.21509]
[1724353331848,3.82791,2612.4,2611.8,3.82877]
[1724353331849,11.53862737,2612.4,2611.8,3.82877]
[1724353332067,7.71064737,2612.4,2611.8,3.82877]
[1724353332263,6.11051,2612.4,2611.9,3.8286]
[1724353332614,7.71064737,2612.4,2611.9,3.8286]
[1724353333256,6.11051,2612.4,2611.9,3.8286]
[1724353334456,3.82814,2612.3,2611.7,6.21509]
[1724353334790,1.60013737,2612.2,2611.8,3.82868]
[1724353334961,8.11062884,2612.4,2611.9,3.8286]
[1724353334962,1.60013737,2612.3,2611.9,3.8286]
[1724353335341,1.60013737,2612.4,2611.9,10.773509]
[1724353335545,1.60013737,2612.4,2612.0,3.82843]
[1724353336095,1.60013737,2612.4,2610.6,1.20218154]
[1724353336096,2.403,2611.2,2610.6,1.20218154]
[1724353336394,5.42744792,2611.4,2610.6,3.83039]
[1724353336643,4.4005724,2611.5,2610.2,6.18177]
[1724353336644,3.82981,2611.1,2610.4,3.83075]
[1724353336779,3.82996,2611.0,2610.4,3.83071]
[1724353336982,3.82996,2611.0,2610.5,0.383071]
[1724353337367,5.42787792,2611.1,2610.5,4.213751]
[1724353337603,3.82982,2611.1,2610.6,3.83053]
[1724353339673,1.59805792,2611.2,2610.6,3.8304]
[1724353339852,5.42784792,2611.2,2610.7,0.4213471]
[1724353340253,5.42757792,2611.3,2610.7,0.4213471]
[1724353340457,1.59805792,2611.3,2611.0,3.82985]
[1724353340692,1.59805792,2611.5,2611.0,4.442005]
[1724353341001,9.25658792,2611.5,2611.0,3.82985]
[1724353341208,9.25658792,2611.5,2610.8,9.95194]
[1724353341209,3.82937,2611.4,2610.8,9.95194]
[1724353341354,5.42727792,2611.5,2610.9,3.83005]
[1724353341554,3.82922,2611.5,2611.0,3.82992]
[1724353341855,3.82922,2611.5,2610.9,1.03731971]
[1724353342057,5.42727792,2611.5,2610.9,4.86736971]
[1724353342268,3.82939,2611.4,2610.9,4.86736971]
[1724353342472,5.42727792,2611.5,2610.9,4.86736971]
[1724353342473,3.82922,2611.5,2610.9,4.86736971]
[1724353342700,3.82922,2611.5,2611.0,1.09891697]
[1724353343209,3.82945,2611.4,2611.0,1.09891697]
[1724353343354,3.82945,2611.4,2610.9,3.83009]
[1724353344057,1.59805792,2611.6,2611.3,3.82943]
[1724353344276,5.42662792,2612.0,2611.3,3.8295]
[1724353344488,5.42648792,2612.1,2611.5,6.31471]
[1724353344657,3.82863,2611.9,2611.5,2.4856]
[1724353344860,3.82879,2611.8,2611.4,0.38295]
[1724353345999,5.42649792,2612.1,2611.4,4.21229]
[1724353346304,3.8287,2611.9,2611.4,0.38295]
[1724353346665,7.65743,2611.9,2611.4,0.38295]
[1724353347807,3.8287,2611.9,2611.4,0.38295]
[1724353348461,3.8287,2611.9,2611.4,4.21228]
[1724353348662,3.8287,2611.9,2611.5,0.804169]
[1724353348896,7.65742,2611.9,2611.5,0.804169]
[1724353349104,3.8287,2611.9,2611.5,0.804169]
[1724353350913,1.59805792,2612.1,2611.5,4.633349]
[1724353351071,5.42641792,2612.1,2611.6,6.22508]
[1724353351265,7.6568,2612.1,2611.7,1.0858429]
[1724353351810,3.82849,2612.0,2611.7,1.0858429]
[1724353351962,3.82849,2612.0,2611.6,2.3961]
[1724353352461,3.82863,2611.9,2611.6,2.3961]
[1724353353306,3.82851,2612.0,2611.6,2.3961]
[1724353354611,3.82833,2612.1,2611.6,3.439845]
[1724353354766,5.42624792,2612.2,2611.7,3.82885]
[1724353354966,3.82819,2612.2,2611.7,7.65768]
[1724353355207,5.42609792,2612.3,2611.7,3.82883]
[1724353355430,5.42609792,2612.3,2611.9,3.82861]
[1724353355431,3.82804,2612.3,2611.9,3.82861]
[1724353355717,5.42576792,2612.6,2612.1,3.82826]
[1724353355897,3.82771,2612.6,2612.2,3.82818]
[1724353356220,5.42551792,2612.7,2612.2,3.82818]
[1724353357010,1.59805792,2612.7,2612.3,3.82802]
[1724353357180,1.59805792,2612.9,2612.5,3.82774]
[1724353357366,3.82713,2613.0,2612.5,7.65531]
[1724353357565,3.82713,2613.0,2612.5,3.82763]
[1724353357982,7.65426,2613.0,2612.5,3.82763]
[1724353358180,3.82713,2613.0,2612.5,3.82763]
[1724353358404,5.42486792,2613.2,2612.5,4.841707]
[1724353358580,9.25168792,2613.2,2612.7,3.82738]
[1724353358911,3.82681,2613.2,2612.7,3.82738]
[1724353359412,7.65364,2613.2,2612.7,3.82738]
[1724353359574,3.82681,2613.2,2612.7,3.82738]
[1724353360171,5.42458792,2613.4,2612.9,3.82709]
[1724353360372,7.65305,2613.4,2612.9,3.82708]
[1724353361194,3.82652,2613.4,2612.9,3.82708]
[1724353361572,3.82629,2613.5,2612.9,7.65415]
[1724353361911,3.82629,2613.5,2613.0,3.82701]
[1724353362120,1.99418307,2613.8,2613.0,3.82701]
[1724353362121,3.82592,2613.8,2613.2,3.82663]
[1724353362415,3.82606,2613.7,2613.2,3.82663]
[1724353362914,3.82606,2613.7,2613.1,3.82687]
[1724353363079,3.82592,2613.8,2613.1,3.82687]
[1724353363080,3.82614,2613.6,2613.1,3.82687]
[1724353363284,3.82614,2613.6,2613.1,7.65374]
[1724353363493,3.82614,2613.6,2613.1,3.82687]
[1724353363699,3.82614,2613.6,2613.2,2.3647]
[1724353363899,7.6513,2614.0,2613.4,3.82632]
[1724353364071,3.82584,2613.8,2613.2,6.19129]
[1724353364268,3.82584,2613.8,2613.3,3.82656]
[1724353364910,3.82563,2614.0,2613.0,3.82701]
[1724353364911,3.963,2613.9,2613.0,3.82701]
[1724353365113,3.963,2613.9,2613.1,3.0]
[1724353365416,3.82644,2613.4,2612.9,6.19178]
[1724353365585,3.82644,2613.4,2613.0,3.0]
[1724353366095,3.82623,2613.6,2613.0,6.82696]
[1724353366302,3.82623,2613.6,2613.0,3.0]
[1724353366303,3.82638,2613.5,2613.0,3.0]
[1724353366814,2.4928,2613.4,2613.0,3.0]
[1724353367016,3.82712,2613.0,2612.4,2.389]
[1724353367314,3.82732,2612.8,2612.4,2.389]
[1724353367518,3.82712,2613.0,2612.4,7.221387]
[1724353367519,3.82717,2612.9,2612.4,7.221387]
[1724353368011,7.65423,2613.0,2612.4,7.221317]
[1724353368215,3.82717,2612.9,2612.4,7.221317]
[1724353368921,3.82738,2612.8,2612.4,1.004497]
[1724353369086,3.82738,2612.8,2612.3,6.82804]
[1724353369291,3.82709,2613.0,2612.4,3.82779]
[1724353369618,3.82682,2613.2,2612.6,2.3986]
[1724353370113,3.82696,2613.1,2612.6,6.22612]
[1724353370316,3.82696,2613.1,2612.6,2.3986]
[1724353370546,3.82682,2613.2,2612.6,7.231503]
[1724353370746,7.65362,2613.2,2612.7,3.82745]
[1724353370949,7.65361,2613.2,2612.7,3.82745]
[1724353371246,3.82703,2613.0,2612.6,3.403993]
[1724353372229,3.82689,2613.1,2612.6,7.231563]
[1724353372745,3.82689,2613.1,2612.6,3.403993]
[1724353373539,3.82706,2613.0,2612.6,3.403993]
[1724353374135,3.82689,2613.1,2612.6,3.403993]
[1724353374526,3.82689,2613.1,2612.7,1.1059283]
[1724353374928,7.65384,2613.1,2612.7,1.1059283]
[1724353375153,7.65384,2613.1,2612.6,2.3986]
[1724353375648,3.82706,2613.0,2612.6,2.3986]
[1724353376044,3.82719,2612.9,2612.6,2.3986]
[1724353376236,3.82689,2613.1,2612.6,2.3986]
[1724353376438,3.82678,2613.2,2612.6,2.3986]
[1724353376773,3.82697,2613.1,2612.6,3.404008]
[1724353377260,3.82697,2613.1,2612.6,7.231598]
[1724353377424,3.82702,2613.0,2612.6,3.404008]
[1724353380364,3.82719,2612.9,2612.6,2.3986]
[1724353380748,3.82701,2613.1,2612.6,2.3986]
[1724353381065,3.82705,2613.0,2612.6,2.3986]
[1724353382456,3.82669,2613.3,2612.6,2.3986]
[1724353382699,3.82668,2613.3,2612.7,0.23986]
[1724353382904,3.8268,2613.2,2612.7,0.23986]
[1724353383394,3.82687,2613.1,2612.7,4.0673]
[1724353383605,3.82687,2613.1,2612.8,0.64659]
[1724353383811,10.23172,2613.7,2612.6,2.3986]
[1724353383812,3.82709,2613.0,2612.6,2.3986]
[1724353384163,3.82709,2613.0,2612.6,5.3986]
[1724353384715,3.82709,2613.0,2612.6,2.3986]
[1724353384716,3.82702,2613.0,2612.6,2.3986]
[1724353385203,7.65411,2613.0,2612.6,2.3986]
[1724353385359,3.82702,2613.0,2612.6,2.3986]
[1724353385726,3.82702,2613.0,2612.6,6.22618]
[1724353385877,3.82702,2613.0,2612.6,7.531576]
[1724353386094,3.82702,2613.0,2612.6,3.703996]
[1724353387171,3.82741,2612.8,2612.3,2.2637]
[1724353387372,3.82741,2612.8,2612.3,6.09165]
[1724353387561,3.82741,2612.8,2612.3,9.9196]
[1724353387763,3.82708,2613.0,2612.5,3.82773]
[1724353388714,3.82708,2613.0,2612.4,3.82789]
[1724353389551,3.82718,2612.9,2612.4,3.82789]
[1724353389699,3.82708,2613.0,2612.4,5.119844]
[1724353390200,3.8269,2613.1,2612.6,3.8276]
[1724353390427,3.82658,2613.3,2612.7,6.18893]
[1724353390609,3.82658,2613.3,2612.7,6.18888]
[1724353390825,3.82673,2613.2,2612.7,6.807768]
[1724353391030,3.82699,2613.1,2612.7,2.980388]
[1724353393463,3.8271,2613.0,2612.5,3.82766]
[1724353394099,3.8271,2613.0,2612.5,7.65531]
[1724353394458,3.82717,2612.9,2612.4,11.005454]
[1724353394661,3.82755,2612.7,2612.4,7.36]
[1724353394960,3.82753,2612.7,2612.4,7.36]
[1724353395455,7.6545,2612.9,2612.4,8.396]
[1724353395616,1.59105758,2613.0,2612.5,2.4523]
[1724353395820,3.82695,2613.1,2612.6,3.82751]
[1724353396035,5.41800758,2613.1,2612.6,3.82751]
[1724353396242,5.41800758,2613.1,2612.6,7.65502]
[1724353396552,5.41800758,2613.1,2612.7,0.41851921]
[1724353396916,1.59105758,2613.2,2612.7,0.41851921]
[1724353397119,3.82709,2613.0,2612.7,0.41851921]
[1724353397348,9.24491758,2613.1,2612.5,6.27994]
[1724353397547,3.82704,2613.0,2612.5,6.27994]
[1724353398410,5.41809758,2613.0,2612.5,6.27994]
[1724353398761,5.41809758,2613.0,2612.6,3.8276]
[1724353398956,5.41809758,2613.0,2612.6,5.67797]
[1724353400255,1.59105758,2612.9,2612.6,1.85037]
[1724353400579,5.41822758,2612.9,2612.6,1.85037]
[1724353400885,1.59105758,2612.8,2612.6,1.85037]
[1724353401237,1.59105758,2612.8,2612.4,8.396]
[1724353401555,1.59105758,2612.7,2612.4,12.22388]
[1724353401922,1.59105758,2612.7,2612.5,3.82772]
[1724353402265,1.59105758,2612.8,2612.6,6.0905]
[1724353402564,1.59105758,2612.8,2612.6,7.921938]
[1724353402864,1.59105758,2612.7,2612.6,4.094338]
[1724353403037,1.99653202,2612.7,2612.6,4.094338]
[1724353403424,1.60073543,2612.7,2612.6,4.094338]
[1724353403637,1.60073543,2612.7,2612.6,1.831438]
[1724353404241,5.82396202,2612.8,2612.4,8.396]
[1724353404435,1.60078866,2612.6,2612.4,8.396]
[1724353404656,1.60078866,2612.6,2612.3,6.16343]
[1724353404657,3.82802,2612.4,2612.0,7.36]
[1724353404853,3.82802,2612.4,2612.0,11.18845]
[1724353405055,1.60078866,2612.4,2612.0,11.18845]
[1724353405365,1.99653202,2612.5,2612.0,15.01681]
[1724353405366,5.42853866,2612.5,2612.0,15.01681]
[1724353405529,5.42853866,2612.5,2612.1,1.738371]
[1724353405866,1.60078866,2612.4,2612.1,5.566681]
[1724353406874,5.42853866,2612.5,2612.1,5.566681]
[1724353407026,1.60078866,2612.5,2612.1,5.566681]
[1724353407366,1.60078866,2612.5,2612.2,1.6755041]
[1724353407664,1.60078866,2612.5,2612.3,3.82801]
[1724353407867,1.60078866,2612.5,2612.3,6.13901]
[1724353408536,2.00052541,2612.6,2612.3,6.13901]
[1724353408537,1.60078866,2612.6,2612.4,3.82789]
[1724353408739,1.60078866,2612.7,2612.5,0.613889]
[1724353408955,1.60078866,2612.7,2612.5,4.441639]
[1724353409965,1.60078866,2612.7,2612.5,0.613889]
[1724353410270,1.60078866,2612.7,2612.3,2.311]
[1724353410271,2.00052541,2612.6,2612.3,2.311]
[1724353410452,1.60133582,2612.4,2612.2,3.82809]
[1724353411067,1.60133582,2612.4,2611.8,12.96525]
[1724353411068,1.60133582,2612.3,2611.8,12.96525]
[1724353411371,1.60133582,2612.1,2611.9,0.3]
[1724353411555,1.60133582,2612.0,2611.7,3.8289]
[1724353411928,1.60133582,2612.1,2611.7,3.8289]
[1724353412226,1.60133582,2612.1,2611.8,0.765782]
[1724353412427,1.60133582,2612.1,2611.8,4.594552]
[1724353412969,1.60133582,2612.1,2611.8,8.423242]
[1724353413174,2.00149015,2612.2,2611.9,2.3665]
[1724353413175,1.60133582,2612.2,2611.9,2.3665]
[1724353413493,1.60133582,2612.2,2612.0,0.3132282]
[1724353413651,1.60133582,2612.2,2612.0,4.1416182]
[1724353415032,1.60133582,2612.2,2612.0,0.3132282]
[1724353415356,1.60133582,2612.1,2611.9,3.82853]
[1724353416593,1.60133582,2612.2,2611.9,3.82853]
[1724353416750,1.60133582,2612.3,2611.9,3.82853]
[1724353417064,1.60133582,2612.2,2611.9,3.82853]
[1724353417576,5.42974582,2612.1,2611.6,11.18903]
[1724353417744,5.42974582,2612.1,2611.7,3.0]
[1724353418865,9.25817582,2612.1,2611.7,3.0]
[1724353419265,3.8285,2612.0,2611.7,3.0]
[1724353419486,5.42974582,2612.1,2611.7,3.0]
[1724353420202,5.42974582,2612.1,2611.6,11.18899]
[1724353420381,1.60133582,2612.1,2611.7,3.82891]
[1724353420709,5.42952582,2612.2,2611.7,6.22431]
[1724353421415,1.60133582,2612.2,2611.8,3.82877]
[1724353421585,5.42946582,2612.3,2611.8,7.65743]
[1724353421786,5.42946582,2612.3,2611.8,7.65734]
[1724353422301,1.60133582,2612.2,2611.8,7.65734]
[1724353422809,5.42946582,2612.3,2611.8,7.65734]
[1724353423487,5.42946582,2612.3,2611.9,3.82861]
[1724353423687,5.42946582,2612.3,2611.8,3.82866]
[1724353423881,5.42946582,2612.3,2611.8,5.62838952]
[1724353425509,1.60133582,2612.3,2611.9,3.82856]
[1724353426284,1.60133582,2612.4,2612.0,3.82847]
[1724353427195,1.60133582,2612.4,2612.0,3.82841]
[1724353430295,5.42926582,2612.4,2612.0,3.82841]
[1724353430731,5.42926582,2612.4,2611.9,3.82862]
[1724353430938,1.60133582,2612.3,2611.9,3.82862]
[1724353431327,5.42937582,2612.3,2611.8,5.62849952]
[1724353431545,5.42937582,2612.3,2611.8,3.82877]
[1724353431845,3.82865,2611.9,2611.6,7.36]
[1724353432048,3.86563582,2612.2,2611.5,6.27985]
[1724353432049,3.82862,2612.0,2611.5,6.27985]
[1724353432245,3.82862,2612.0,2611.6,3.0]
[1724353432453,3.82862,2612.0,2611.6,6.82905]
[1724353432661,9.25790582,2612.2,2611.6,10.65801]
[1724353432961,3.82825,2612.2,2611.8,3.82876]
[1724353433104,5.42958582,2612.2,2611.8,3.82876]
[1724353433302,3.82856,2612.0,2611.6,6.82904]
[1724353434616,5.42962582,2612.2,2611.6,3.6444721]
[1724353434816,5.42962582,2612.2,2611.7,3.8289]
[1724353435033,9.25789582,2612.2,2611.7,3.8289]
[1724353435295,5.42960582,2612.2,2611.7,3.8289]
[1724353435812,1.60133582,2612.2,2611.7,3.82887]
[1724353436051,1.60133582,2612.3,2611.9,3.8286]
[1724353436412,1.60133582,2612.3,2611.9,3.82855]
[1724353436905,5.42940582,2612.3,2611.9,3.82855]
[1724353437105,1.60133582,2612.2,2611.9,3.82855]